bitfinex-derivatives/quotes_ETHF0:USTF0_20241027
["timestamp","ask_amount","ask_price","bid_price","bid_amount"]
[1730037193512,0.40204,2489.9,2489.8,0.4331]
[1730037193712,0.40207,2489.7,2489.6,3.60987]
[1730037196516,0.40207,2489.7,2489.6,0.40207]
[1730037199815,0.40209,2489.6,2489.5,3.60989]
[1730037202214,1.87627,2489.8,2489.6,0.40207]
[1730037202215,0.40209,2489.7,2489.6,0.40207]
[1730037207419,0.40209,2489.6,2489.5,0.4021]
[1730037207717,0.4021,2489.5,2489.4,1.27441]
[1730037207925,0.4021,2489.5,2489.4,0.83481]
[1730037208144,0.40214,2489.3,2489.2,4.03954]
[1730037208422,0.40214,2489.3,2489.2,3.60994]
[1730037213018,0.40214,2489.3,2489.2,3.60995]
[1730037214624,1.32314,2489.3,2489.2,3.60995]
[1730037217826,1.92635,2489.3,2489.0,4.0821]
[1730037218026,0.40217,2489.1,2489.0,1.27648]
[1730037219127,0.40217,2489.1,2489.0,0.84688]
[1730037221931,0.83677,2489.2,2489.1,0.40217]
[1730037222335,4.85437,2489.2,2489.1,0.40217]
[1730037222625,1.32314,2489.3,2489.2,0.40215]
[1730037222826,0.921,2489.3,2489.2,0.40215]
[1730037223228,0.921,2489.3,2489.2,0.82195]
[1730037224130,1.32314,2489.3,2489.2,0.82195]
[1730037224627,0.921,2489.3,2489.2,0.82195]
[1730037226731,1.32314,2489.3,2489.2,0.82195]
[1730037227142,1.32314,2489.3,2489.2,0.4198]
[1730037227335,0.40217,2489.1,2489.0,0.84687]
[1730037227524,0.40217,2489.1,2489.0,0.8626]
[1730037227726,0.40217,2489.1,2489.0,1.26478]
[1730037228924,1.92635,2489.3,2489.2,0.40215]
[1730037228925,1.32314,2489.3,2489.2,0.40215]
[1730037229232,1.32214,2489.3,2489.2,0.40215]
[1730037229436,0.92,2489.3,2489.2,0.40215]
[1730037231030,1.32214,2489.3,2489.2,0.40215]
[1730037233027,0.40218,2489.0,2488.9,3.60999]
[1730037233231,0.40218,2489.0,2488.8,0.4022]
[1730037233528,0.40221,2488.9,2488.6,4.0736]
[1730037233834,0.40221,2488.9,2488.7,0.40223]
[1730037234035,0.40222,2488.8,2488.7,0.40223]
[1730037236133,0.40223,2488.7,2488.6,4.47584]
[1730037237135,0.40223,2488.7,2488.6,4.0736]
[1730037237737,0.40223,2488.7,2488.6,4.47585]
[1730037238245,0.40223,2488.7,2488.6,4.0736]
[1730037238441,0.40223,2488.7,2488.6,4.47585]
[1730037242038,0.40223,2488.7,2488.6,1.26805]
[1730037244542,0.92,2488.8,2488.6,1.26805]
[1730037244543,1.32223,2488.8,2488.7,0.40223]
[1730037245545,1.00538,2489.3,2488.8,1.00555]
[1730037245850,1.32218,2489.2,2489.1,0.40215]
[1730037246045,0.40218,2489.2,2489.1,0.40215]
[1730037246244,1.32218,2489.2,2489.1,0.40215]
[1730037246948,0.92,2489.2,2489.1,0.40215]
[1730037247745,0.92,2489.2,2489.1,3.60997]
[1730037249763,1.32215,2489.2,2489.1,3.60997]
[1730037249942,0.92,2489.2,2489.1,3.60997]
[1730037250146,1.32215,2489.2,2489.1,3.60997]
[1730037250347,0.92,2489.2,2489.1,3.60997]
[1730037251552,0.40215,2489.3,2489.2,0.40215]
[1730037251752,1.32215,2489.3,2489.2,0.40215]
[1730037254363,0.40217,2489.2,2489.1,0.40216]
[1730037260157,1.92537,2489.3,2489.0,3.6155]
[1730037260354,0.40217,2489.1,2489.0,4.01767]
[1730037262258,0.40217,2489.1,2489.0,4.47027]
[1730037265049,0.40217,2489.1,2489.0,0.8603]
[1730037265359,0.40217,2489.1,2488.8,0.40221]
[1730037265360,0.4022,2488.9,2488.8,0.85242]
[1730037267459,0.4022,2488.9,2488.8,0.4502]
[1730037267661,0.40222,2488.8,2488.7,0.81342]
[1730037267855,1.28532,2488.8,2488.7,0.81342]
[1730037269765,0.8831,2488.8,2488.5,3.6331]
[1730037269962,0.40225,2488.6,2488.5,4.03537]
[1730037270157,0.40225,2488.6,2488.5,0.82757]
[1730037270361,0.40225,2488.6,2488.5,4.03537]
[1730037271358,0.40224,2488.7,2488.6,0.40223]
[1730037274160,0.919,2488.7,2488.6,0.40223]
[1730037274664,1.32121,2488.9,2488.8,0.40222]
[1730037274852,0.40221,2488.9,2488.8,0.40222]
[1730037275057,0.919,2488.9,2488.8,0.40222]
[1730037275259,3.2078,2489.1,2488.8,4.8791]
[1730037275559,3.2078,2489.1,2489.0,0.40218]
[1730037275560,3.60997,2489.1,2489.0,0.40218]
[1730037276865,0.40219,2489.0,2488.9,0.40219]
[1730037277066,3.2078,2489.1,2489.0,0.40218]
[1730037277067,3.60997,2489.1,2489.0,0.40218]
[1730037277973,0.40217,2489.1,2489.0,0.40218]
[1730037283267,1.3321,2489.2,2488.8,0.8615]
[1730037283474,1.73427,2489.2,2489.1,0.40217]
[1730037283970,0.40218,2489.1,2489.0,0.40217]
[1730037284172,1.73426,2489.2,2489.1,0.40217]
[1730037284366,0.40218,2489.1,2489.0,0.40217]
[1730037287162,1.3301,2489.2,2488.8,4.0693]
[1730037287372,0.4022,2489.0,2488.9,0.40219]
[1730037287979,2.33549,2489.2,2488.8,4.47151]
[1730037287980,0.4022,2488.9,2488.8,4.47151]
[1730037288967,0.4022,2488.9,2488.8,4.0693]
[1730037289173,0.4116,2489.0,2488.4,3.05147762]
[1730037289174,1.41708,2489.0,2488.5,3.6572]
[1730037289379,0.40225,2488.7,2488.6,0.40224]
[1730037290075,0.40225,2488.6,2488.5,4.47886]
[1730037292276,0.40225,2488.6,2488.5,4.0766]
[1730037292466,0.40225,2488.6,2488.5,0.8688]
[1730037293772,0.40225,2488.6,2488.5,1.27107]
[1730037294276,0.40225,2488.6,2488.5,0.8688]
[1730037294869,0.40225,2488.6,2488.5,1.27107]
[1730037302679,0.40225,2488.6,2488.5,0.40227]
[1730037302877,0.40225,2488.6,2488.3,3.6474]
[1730037302878,1.00564,2488.6,2488.3,4.062]
[1730037303080,0.40228,2488.4,2488.3,4.46428]
[1730037303482,0.40228,2488.4,2488.3,8.48268]
[1730037304784,0.40228,2488.4,2488.3,4.46428]
[1730037305182,0.40228,2488.4,2488.3,4.062]
[1730037305385,4.42068,2488.4,2488.3,3.2078]
[1730037305583,4.42068,2488.4,2488.3,3.6101]
[1730037306382,0.40231,2488.2,2488.1,0.4451]
[1730037306589,0.40233,2488.1,2488.0,0.83894]
[1730037307084,0.40233,2488.1,2488.0,0.4366]
[1730037307290,0.40237,2487.9,2487.8,0.40237]
[1730037307588,0.917,2487.9,2487.8,0.40238]
[1730037309595,1.31936,2487.9,2487.8,0.40238]
[1730037309796,0.917,2487.9,2487.8,0.40238]
[1730037310088,0.83761,2488.3,2488.2,0.40231]
[1730037310289,0.4023,2488.3,2488.2,0.40231]
[1730037310490,1.32029,2488.4,2488.3,0.4023]
[1730037311390,0.918,2488.4,2488.1,0.4283]
[1730037311592,0.40231,2488.2,2488.1,0.83062]
[1730037311990,0.40231,2488.2,2488.1,0.4283]
[1730037312191,0.40231,2488.2,2488.1,0.83063]
[1730037314494,0.918,2488.4,2488.1,0.83063]
[1730037314695,0.40231,2488.3,2488.2,0.40231]
[1730037315190,0.918,2488.4,2488.1,0.4283]
[1730037315390,0.40231,2488.2,2488.1,0.83062]
[1730037316186,0.918,2488.4,2488.2,0.40231]
[1730037316187,0.40231,2488.3,2488.2,0.40231]
[1730037316395,0.40233,2488.2,2488.1,0.40232]
[1730037316595,0.40231,2488.3,2488.2,0.4023]
[1730037317586,0.918,2488.4,2488.0,0.876]
[1730037317889,0.918,2488.4,2488.3,0.4023]
[1730037318096,1.32028,2488.4,2488.3,0.4023]
[1730037318482,0.918,2488.4,2488.3,0.4023]
[1730037318693,0.40226,2488.6,2488.4,0.40228]
[1730037318900,0.40226,2488.6,2488.5,0.83047]
[1730037319095,1.31826,2488.6,2488.5,0.83047]
[1730037319893,1.31826,2488.6,2488.5,0.4282]
[1730037320998,1.31826,2488.6,2488.5,0.83047]
[1730037321698,1.31826,2488.6,2488.5,0.4282]
[1730037322198,1.31826,2488.6,2488.5,0.83047]
[1730037322385,1.31826,2488.6,2488.5,0.4282]
[1730037323300,1.31826,2488.6,2488.1,3.2078]
[1730037323301,4.9344,2488.6,2488.1,3.2078]
[1730037323600,0.40231,2488.3,2488.2,0.4023]
[1730037324494,0.40229,2488.4,2488.3,0.40228]
[1730037324893,0.916,2488.6,2488.1,4.21363]
[1730037325096,0.40228,2488.5,2488.4,0.40227]
[1730037325593,1.31828,2488.5,2488.4,0.40227]
[1730037325794,1.31828,2488.5,2488.1,4.21363]
[1730037325795,0.916,2488.5,2488.3,0.4023]
[1730037325997,1.31827,2488.5,2488.4,0.8914]
[1730037326189,0.40229,2488.4,2488.3,0.40228]
[1730037327491,1.31829,2488.4,2488.3,0.40228]
[1730037328496,0.916,2488.5,2488.3,1.00575]
[1730037328696,0.916,2488.5,2488.4,3.61008]
[1730037328903,0.40225,2488.6,2488.5,0.40227]
[1730037329106,0.916,2488.7,2488.4,3.2078]
[1730037329288,3.6572,2488.9,2488.7,0.40223]
[1730037329289,0.40223,2488.8,2488.7,0.40223]
[1730037329494,0.4022,2488.9,2488.8,0.4022]
[1730037329690,0.40218,2489.1,2488.9,0.4022]
[1730037329895,1.31818,2489.1,2489.0,1.29028]
[1730037330526,0.40216,2489.2,2489.1,0.40215]
[1730037330693,1.31816,2489.2,2489.1,0.40215]
[1730037330900,1.00534,2489.4,2489.0,0.8881]
[1730037331093,0.40216,2489.2,2489.1,0.40215]
[1730037331607,4.63627,2489.5,2489.0,4.0959]
[1730037331801,0.40217,2489.1,2489.0,4.0959]
[1730037332002,0.40217,2489.1,2489.0,0.8881]
[1730037332501,0.40217,2489.1,2489.0,4.9057]
[1730037332705,0.4022,2488.9,2488.8,0.84481]
[1730037332903,0.4022,2488.9,2488.8,0.4426]
[1730037333499,0.4022,2488.9,2488.8,4.86242]
[1730037333700,0.4022,2488.9,2488.8,0.84482]
[1730037333900,0.4022,2488.9,2488.8,4.86242]
[1730037334101,0.4022,2488.9,2488.8,0.84482]
[1730037334700,0.4022,2488.9,2488.8,0.4426]
[1730037335106,0.4022,2488.9,2488.8,0.84482]
[1730037336698,0.4022,2488.9,2488.8,0.4426]
[1730037337706,4.0176,2488.9,2488.4,3.2078]
[1730037337906,4.0176,2488.9,2488.5,0.4103]
[1730037337907,0.40227,2488.6,2488.5,0.4103]
[1730037338214,0.916,2488.6,2488.2,0.411]
[1730037338511,0.916,2488.6,2488.0,0.40234]
[1730037338512,0.40233,2488.1,2488.0,0.40234]
[1730037338900,1.00571,2488.4,2488.0,4.0192]
[1730037339107,0.40233,2488.2,2488.1,0.40232]
[1730037341117,1.43328,2488.5,2487.9,1.2662]
[1730037341314,0.40229,2488.4,2488.3,0.40228]
[1730037342413,0.40229,2488.4,2488.1,3.2078]
[1730037342414,0.4023,2488.3,2488.2,0.4023]
[1730037342612,0.40231,2488.2,2488.1,3.61013]
[1730037342819,0.40231,2488.2,2488.1,3.2078]
[1730037343507,1.43482,2488.4,2488.0,0.40233]
[1730037343711,0.40233,2488.1,2488.0,0.40233]
[1730037349914,1.0058,2488.2,2487.8,3.2078]
[1730037350226,0.40236,2487.9,2487.8,3.2078]
[1730037350416,0.40236,2487.9,2487.8,3.61018]
[1730037351117,0.40238,2487.8,2487.7,0.40239]
[1730037351314,0.40239,2487.7,2487.6,0.8194]
[1730037351518,0.40239,2487.7,2487.6,0.417]
[1730037352110,0.40239,2487.7,2487.6,0.81941]
[1730037352718,0.40239,2487.7,2487.6,0.417]
[1730037352914,0.40239,2487.7,2487.6,0.81941]
[1730037354419,0.40239,2487.7,2487.6,0.417]
[1730037354619,0.40239,2487.7,2487.6,0.81941]
[1730037355915,0.40243,2487.5,2487.4,3.2078]
[1730037356120,1.31743,2487.5,2487.4,3.2078]
[1730037356612,1.74693,2487.5,2487.4,3.2078]
[1730037358616,1.74693,2487.5,2487.4,0.40244]
[1730037359123,0.83193,2487.5,2487.4,0.40244]
[1730037359449,1.74693,2487.5,2487.4,0.40244]
[1730037360422,1.3174,2487.7,2487.6,0.4024]
[1730037361024,0.4024,2487.7,2487.6,0.4024]
[1730037361214,1.3174,2487.7,2487.6,0.4024]
[1730037361715,1.31739,2487.7,2487.6,0.4024]
[1730037362122,1.31739,2487.7,2487.6,1.2575]
[1730037363416,0.915,2487.7,2487.6,1.2575]
[1730037363646,0.915,2487.7,2487.6,0.8551]
[1730037363918,1.31739,2487.7,2487.6,1.25751]
[1730037364915,0.915,2487.7,2487.6,1.25751]
[1730037365116,1.31739,2487.7,2487.6,1.25751]
[1730037365518,0.8502,2487.9,2487.6,0.8551]
[1730037365725,1.25258,2487.9,2487.8,0.40238]
[1730037365926,0.40239,2487.8,2487.7,0.40238]
[1730037366430,1.31739,2487.8,2487.7,0.40238]
[1730037367524,0.915,2487.8,2487.6,2.29493]
[1730037367726,0.915,2487.8,2487.7,0.40239]
[1730037368620,0.40237,2487.9,2487.6,2.29493]
[1730037368829,1.31736,2488.0,2487.9,0.40236]
[1730037369119,0.40238,2487.8,2487.7,0.40239]
[1730037369526,0.40238,2487.9,2487.8,0.40237]
[1730037369723,2.34728,2488.0,2487.6,1.2889]
[1730037370026,0.40239,2487.7,2487.6,1.6913]
[1730037370226,0.40239,2487.7,2487.6,1.2889]
[1730037370526,0.40239,2487.7,2487.6,1.69131]
[1730037370822,0.40239,2487.7,2487.6,4.89911]
[1730037371019,0.40239,2487.7,2487.6,4.04501]
[1730037371219,0.85479,2487.7,2487.6,0.83721]
[1730037372126,0.4524,2487.7,2487.6,0.83721]
[1730037372429,0.40239,2487.8,2487.7,0.40239]
[1730037372820,4.42239,2487.8,2487.7,0.40239]
[1730037373124,0.40239,2487.8,2487.7,0.40239]
[1730037374322,0.4524,2487.9,2487.6,0.8372]
[1730037374323,0.40239,2487.7,2487.6,0.8372]
[1730037376029,0.40239,2487.7,2487.6,0.4024]
[1730037376224,0.83989,2487.7,2487.6,0.4024]
[1730037378324,0.83989,2487.7,2487.3,0.4497]
[1730037378325,0.4375,2487.7,2487.3,0.4497]
[1730037378528,0.4375,2487.7,2487.4,0.40243]
[1730037378529,0.40244,2487.5,2487.4,0.40243]
[1730037379248,0.40244,2487.4,2487.3,0.85215]
[1730037379422,0.40244,2487.4,2487.3,0.4497]
[1730037379619,0.40244,2487.4,2487.3,0.85216]
[1730037380123,0.40244,2487.4,2487.3,0.4497]
[1730037380523,0.40244,2487.4,2487.3,0.85216]
[1730037380728,0.40246,2487.3,2487.2,3.61027]
[1730037380932,1.76916,2487.3,2487.2,3.61027]
[1730037383443,1.76916,2487.3,2487.2,3.61028]
[1730037384929,1.76916,2487.3,2487.2,3.2078]
[1730037385471,5.78996,2487.3,2487.2,3.2078]
[1730037385736,5.78996,2487.3,2487.1,0.40249]
[1730037385737,0.40248,2487.2,2487.1,0.40249]
[1730037386035,0.40251,2487.1,2487.0,0.4025]
[1730037386339,0.40251,2487.0,2486.9,3.2078]
[1730037386640,0.40252,2486.9,2486.8,0.8747]
[1730037386933,0.40257,2486.7,2486.6,0.40255]
[1730037387231,0.40257,2486.7,2486.6,0.84795]
[1730037388130,0.40257,2486.7,2486.5,3.6371]
[1730037388131,0.4489,2486.7,2486.5,3.6371]
[1730037388332,0.4489,2486.7,2486.5,0.40257]
[1730037388333,0.40258,2486.6,2486.5,0.40257]
[1730037388524,0.40258,2486.6,2486.4,0.4188]
[1730037388525,0.85147,2486.7,2486.6,0.40257]
[1730037389931,0.85146,2486.7,2486.6,0.40257]
[1730037390234,0.40258,2486.6,2486.5,0.40259]
[1730037390427,0.40258,2486.6,2485.6,3.2078]
[1730037390428,4.5201591,2486.6,2485.6,3.2078]
[1730037390659,4.5201591,2486.6,2485.9,0.40268]
[1730037390660,0.40268,2486.0,2485.9,0.40268]
[1730037390934,1.31667,2486.0,2485.9,0.40268]
[1730037391131,1.31667,2486.0,2485.7,0.4168]
[1730037391132,4.9364,2486.0,2485.7,0.4168]
[1730037391334,0.914,2486.0,2485.7,0.4168]
[1730037391536,0.4027,2485.9,2485.8,0.4027]
[1730037391838,0.40269,2485.9,2485.7,0.81951]
[1730037392036,0.4027,2485.8,2485.7,0.40271]
[1730037392233,0.4027,2485.9,2485.7,0.40271]
[1730037392634,0.914,2486.0,2485.6,0.40272]
[1730037392836,0.4027,2485.9,2485.6,0.40272]
[1730037393035,0.4027,2485.9,2485.5,3.2078]
[1730037393237,0.914,2486.0,2485.5,3.2078]
[1730037393641,0.4027,2485.9,2485.5,3.2078]
[1730037393936,0.4027,2485.9,2485.7,0.40271]
[1730037394236,0.914,2486.0,2485.5,3.2078]
[1730037394436,0.40269,2485.9,2485.6,0.40272]
[1730037394635,0.4027,2485.9,2485.6,0.40272]
[1730037394842,4.42591,2485.8,2485.6,0.40272]
[1730037395036,0.4493,2485.7,2485.6,0.40272]
[1730037395234,0.4493,2485.7,2485.5,3.2078]
[1730037395235,0.40273,2485.6,2485.5,3.2078]
[1730037395438,4.85803,2485.6,2485.5,3.2078]
[1730037397132,9.10569086,2485.6,2485.5,3.2078]
[1730037397339,0.40276,2485.5,2485.3,0.40277]
[1730037397540,0.914,2485.4,2485.3,0.40277]
[1730037397734,4.9372,2485.4,2485.3,0.40277]
[1730037400639,4.9372,2485.4,2485.1,3.6423]
[1730037400844,4.024,2485.3,2484.8,3.2078]
[1730037401041,0.4248,2485.2,2484.6,1.00725]
[1730037401247,3.2078,2485.5,2484.8,3.2078]
[1730037401450,1.3388,2485.4,2484.8,3.2078]
[1730037401642,0.40281,2485.2,2485.0,0.40283]
[1730037401841,1.3388,2485.4,2484.8,3.2078]
[1730037401842,0.40282,2485.1,2484.9,0.40284]
[1730037402044,0.40282,2485.1,2484.8,3.2078]
[1730037402447,0.40284,2485.0,2484.8,3.61065]
[1730037402640,0.914,2484.9,2484.8,3.61065]
[1730037402950,5.34085,2484.9,2484.8,3.61066]
[1730037403151,5.76565,2484.9,2484.8,3.61066]
[1730037403545,5.76565,2484.9,2484.8,3.2078]
[1730037403752,5.3628,2484.9,2484.6,0.40289]
[1730037403950,0.40288,2484.7,2484.5,1.2587]
[1730037404148,0.4029,2484.6,2484.5,0.85]
[1730037404448,0.4029,2484.6,2484.5,0.4389]
[1730037404652,0.4029,2484.6,2484.3,3.2078]
[1730037404653,0.40291,2484.5,2484.3,3.61074]
[1730037404854,0.914,2484.4,2484.3,3.61074]
[1730037405647,0.914,2484.4,2484.1,1.308]
[1730037405648,0.40295,2484.3,2484.1,1.308]
[1730037406051,0.914,2484.4,2484.1,1.308]
[1730037406247,0.914,2484.4,2483.1,1.04011762]
[1730037406248,8.24078,2484.3,2483.6,0.40305]
[1730037406451,8.24078,2484.3,2483.5,3.2078]
[1730037406452,4.33487577,2484.2,2483.5,3.2078]
[1730037406654,0.913,2484.1,2483.9,0.40301]
[1730037406956,0.913,2484.1,2483.8,3.2078]
[1730037407347,0.913,2484.1,2483.9,0.40301]
[1730037407547,0.40301,2483.9,2483.8,3.2078]
[1730037407956,4.0264,2483.9,2483.8,3.61083]
[1730037408154,0.403,2484.0,2483.8,1.06003894]
[1730037408359,0.40301,2483.9,2483.8,1.06003894]
[1730037408762,4.0264,2483.9,2483.8,1.06003894]
[1730037409268,4.0264,2483.9,2483.7,0.82674]
[1730037409457,4.0264,2483.8,2483.7,0.4237]
[1730037409762,3.42140521,2483.8,2483.7,0.82674]
[1730037409965,3.42140521,2483.8,2483.7,0.40304]
[1730037410160,3.42140521,2483.8,2483.3,3.6392]
[1730037410161,3.82443521,2483.8,2483.3,3.6392]
[1730037410361,0.40302,2483.9,2483.6,1.00804479]
[1730037410772,0.40304,2483.7,2483.6,0.60499479]
[1730037410968,0.40304,2483.8,2483.6,0.60499479]
[1730037411268,0.40303,2483.8,2483.6,0.60499479]
[1730037411570,0.40303,2483.8,2483.5,0.40306]
[1730037411757,0.83655,2483.7,2483.5,0.40306]
[1730037411964,0.914,2483.6,2483.5,0.40306]
[1730037412471,4.8460225,2483.6,2483.5,0.40306]
[1730037414968,3.2078,2484.1,2484.0,0.40299]
[1730037415169,4.1218,2484.1,2484.0,0.40299]
[1730037416159,4.1218,2484.1,2483.8,0.4338]
[1730037416360,3.2078,2484.1,2483.8,0.83682]
[1730037416560,0.914,2484.0,2483.9,0.40301]
[1730037417763,3.2078,2484.1,2484.0,0.40299]
[1730037417965,4.1218,2484.1,2484.0,0.40299]
[1730037418369,3.2078,2484.1,2484.0,0.40299]
[1730037418668,0.40292,2484.5,2483.9,0.40301]
[1730037418862,0.914,2484.4,2484.3,0.40295]
[1730037419379,0.914,2484.4,2484.3,0.40294]
[1730037419681,0.914,2484.4,2483.9,4.21533]
[1730037419870,3.2078,2484.6,2484.1,1.00745]
[1730037420067,0.914,2484.5,2484.4,0.40292]
[1730037420370,0.914,2484.8,2484.2,7.2326]
[1730037420581,0.914,2484.8,2484.3,0.8472]
[1730037420767,0.914,2484.8,2484.6,0.40288]
[1730037420768,1.31687,2484.8,2484.6,0.40288]
[1730037421281,1.31687,2484.8,2484.3,0.8472]
[1730037421282,0.914,2484.8,2484.3,0.8472]
[1730037421577,0.40291,2484.6,2484.4,0.40292]
[1730037421777,0.40291,2484.5,2484.4,0.40292]
[1730037422181,0.40293,2484.4,2484.3,0.8472]
[1730037422375,0.914,2484.5,2484.3,0.8472]
[1730037422777,0.40293,2484.4,2484.3,1.25014]
[1730037422970,0.914,2484.5,2484.3,0.8472]
[1730037423170,0.40293,2484.4,2484.3,1.25014]
[1730037423470,0.40293,2484.4,2484.3,1.25013]
[1730037423471,1.31693,2484.4,2484.3,1.25013]
[1730037424470,1.31693,2484.4,2484.3,0.8472]
[1730037424879,1.31693,2484.4,2484.3,1.25015]
[1730037425276,0.40293,2484.4,2484.3,0.8472]
[1730037425676,0.40293,2484.4,2483.8,4.21536]
[1730037425677,4.0248,2484.4,2483.8,4.21536]
[1730037425875,0.40296,2484.3,2484.2,0.40294]
[1730037426077,4.21506,2484.6,2483.9,0.8717]
[1730037426078,3.2078,2484.6,2483.9,0.8717]
[1730037426281,1.31692,2484.5,2484.4,0.40292]
[1730037426582,0.914,2484.5,2484.1,3.2078]
[1730037426774,0.40294,2484.4,2484.3,0.40294]
[1730037426971,0.914,2484.5,2484.1,3.2078]
[1730037427275,0.4093,2484.8,2484.5,0.40291]
[1730037427478,0.4029,2484.6,2484.5,0.40291]
[1730037427694,1.3169,2484.6,2484.5,0.40291]
[1730037428181,1.3169,2484.6,2484.4,0.40292]
[1730037428182,0.40292,2484.5,2484.4,0.40292]
[1730037428369,4.1218,2484.6,2484.1,3.2078]
[1730037428684,0.40293,2484.4,2484.3,0.40294]
[1730037429075,4.9388,2484.4,2483.9,0.4506]
[1730037429280,0.40298,2484.1,2484.0,0.40299]
[1730037429585,0.40299,2484.0,2483.9,1.2674]
[1730037430378,3.6596,2484.3,2483.9,0.8644]
[1730037430577,0.40299,2484.1,2484.0,0.40299]
[1730037430772,0.40299,2484.0,2483.9,1.2674]
[1730037431089,3.6596,2484.3,2483.9,0.8644]
[1730037431285,0.40299,2484.0,2483.9,1.2674]
[1730037431583,0.40299,2484.1,2484.0,0.40299]
[1730037431783,0.40297,2484.2,2484.1,0.40297]
[1730037432585,0.40296,2484.2,2484.1,0.40298]
[1730037432981,3.2078,2484.3,2484.0,0.4293]
[1730037433284,3.2078,2484.3,2484.2,0.40296]
[1730037433285,3.61075,2484.3,2484.2,0.40296]
[1730037433680,3.61075,2484.3,2484.0,0.4293]
[1730037433681,3.2078,2484.3,2484.0,0.4293]
[1730037433888,3.61076,2484.3,2484.1,0.40298]
[1730037434089,3.2078,2484.3,2484.1,0.40298]
[1730037434282,0.40296,2484.2,2484.1,0.40298]
[1730037435304,3.61076,2484.3,2484.2,0.40296]
[1730037436089,3.61075,2484.3,2484.0,0.4293]
[1730037436297,3.61075,2484.3,2484.2,0.40296]
[1730037438299,4.52575,2484.3,2484.2,0.40296]
[1730037438996,1.31795,2484.3,2484.2,0.40296]
[1730037439189,1.31795,2484.3,2484.0,0.4293]
[1730037439190,0.915,2484.3,2484.0,0.4293]
[1730037439398,1.31796,2484.3,2484.2,0.40296]
[1730037440089,1.31795,2484.3,2484.2,0.40296]
[1730037440295,3.2078,2484.5,2484.0,0.4293]
[1730037440507,1.31795,2484.4,2484.2,0.40295]
[1730037440694,0.40295,2484.3,2484.2,0.40295]
[1730037441893,0.40293,2484.5,2484.4,0.40292]
[1730037442198,1.31793,2484.5,2484.4,0.40293]
[1730037442595,0.40293,2484.5,2484.4,0.40293]
[1730037442805,3.2078,2484.8,2484.7,0.40288]
[1730037443001,3.2078,2484.8,2484.5,1.00729]
[1730037443002,1.3179,2484.6,2484.5,1.6678]
[1730037443190,0.40294,2484.4,2484.1,4.24791762]
[1730037443392,0.915,2484.6,2484.2,0.4278]
[1730037443393,0.81313,2484.5,2484.2,0.4278]
[1730037443609,0.81313,2484.5,2484.4,0.40293]
[1730037444298,3.61068,2484.8,2484.7,0.40288]
[1730037444500,4.52566,2484.8,2484.7,0.40288]
[1730037444806,4.1228,2484.8,2484.7,0.40288]
[1730037445101,3.2078,2484.8,2484.7,0.40288]
[1730037445396,1.31785,2484.9,2484.8,0.40285]
[1730037447198,0.915,2484.9,2484.8,0.40285]
[1730037447397,0.4102,2485.1,2485.0,0.40283]
[1730037447598,1.3252,2485.1,2485.0,0.40283]
[1730037450203,0.4102,2485.1,2485.0,0.40283]
[1730037450410,0.81379,2485.3,2485.2,0.4028]
[1730037450707,1.72878,2485.3,2485.2,0.4028]
[1730037450903,0.40278,2485.3,2485.2,0.4028]
[1730037451206,3.61056,2485.5,2485.4,0.40277]
[1730037451395,4.52556,2485.5,2485.4,0.40277]
[1730037451600,4.52555,2485.5,2485.4,0.40277]
[1730037451903,4.1228,2485.5,2485.4,0.40277]
[1730037452102,3.61055,2485.5,2485.4,0.40277]
[1730037452303,3.2078,2485.5,2485.4,0.40277]
[1730037453008,3.2078,2485.5,2485.4,4.42597]
[1730037454103,0.4028,2485.2,2485.1,1.6935]
[1730037454304,0.40279,2485.3,2485.2,0.40278]
[1730037456315,0.915,2485.4,2485.1,1.2907]
[1730037456515,1.31777,2485.4,2485.3,0.40278]
[1730037457410,4.1228,2485.5,2485.4,0.40277]
[1730037457615,4.52555,2485.5,2485.4,0.40277]
[1730037458714,3.61055,2485.5,2485.4,0.40277]
[1730037458914,3.2078,2485.5,2485.4,0.40277]
[1730037459217,3.2078,2485.5,2485.4,4.42597]
[1730037459415,3.61055,2485.5,2485.4,4.42597]
[1730037459611,3.2078,2485.5,2485.4,4.42597]
[1730037460611,3.61055,2485.5,2485.4,0.40277]
[1730037462917,0.40275,2485.5,2485.4,0.40277]
[1730037468617,4.5338,2485.6,2485.3,0.40277]
[1730037468618,0.40279,2485.4,2485.3,0.40277]
[1730037468929,0.81839,2485.4,2485.3,0.40277]
[1730037470317,0.81839,2485.4,2485.0,3.2078]
[1730037470318,0.40282,2485.1,2485.0,3.2078]
[1730037470520,0.40286,2484.9,2484.8,0.40285]
[1730037470712,0.40286,2484.8,2484.7,3.61068]
[1730037470918,0.40294,2484.4,2484.1,1.44122]
[1730037471234,0.40294,2484.4,2484.3,0.40293]
[1730037471619,1.327,2484.6,2484.2,0.4358]
[1730037471814,0.40297,2484.2,2484.1,0.40295]
[1730037472923,3.2078,2484.4,2483.9,1.00753]
[1730037473122,0.40296,2484.3,2484.2,0.40295]
[1730037473825,3.2078,2484.4,2484.0,0.4194]
[1730037474023,0.4161,2484.5,2484.1,1.00745]
[1730037474229,0.913,2484.6,2484.2,1.00741]
[1730037474433,0.913,2484.6,2484.5,0.40291]
[1730037474434,1.3159,2484.6,2484.5,0.40291]